fUSD/lending_fUSD_20251103
["ID","MTS","AMOUNT","RATE_DAILY","PERIOD"]
[392996654,1762209048869,-258.42588174,0.0003685,7]
[392996655,1762209048879,-166.69752704,0.0003685,2]
[392996656,1762209048893,-1000.0,0.0003685,7]
[392996657,1762209048903,-890.41706766,0.00036852,2]
[392996658,1762209048912,-1000.0,0.00036866,7]
[392996659,1762209048922,-1425.0,0.00036867,2]
[392996660,1762209048932,-178.74819678,0.0003687,9]
[392996661,1762209048941,-500.0,0.00036873,5]
[392996662,1762209048950,-215.353,0.00036873,2]
[392996663,1762209048961,-1000.0,0.00036876,7]
[392996664,1762209048970,-299.32658592,0.00036876,2]
[392996665,1762209048980,-1000.0,0.00036878,7]
[392996666,1762209048989,-1000.0,0.00036883,7]
[392996667,1762209048998,-403.03110991,0.00036885,2]
[392996668,1762209049008,-150.0,0.00036886,7]
[392996669,1762209049017,-490.8726,0.00036888,7]
[392996670,1762209049026,-209.0,0.0003689,30]
[392996671,1762209049035,-1425.0,0.00036894,2]
[392996672,1762209049045,-403.03110987,0.00036895,2]
[392996673,1762209049055,-178.74819676,0.00036896,9]
[392996674,1762209049064,-304.0,0.000369,2]
[392996675,1762209049074,-403.03110987,0.00036906,2]
[392996676,1762209049083,-207.14,0.00036909,60]
[392996677,1762209049093,-2230.1069837,0.0003691,2]
[392996678,1762209050864,-151.0,0.000249,7]
[392996679,1762209050874,-151.0,0.000249,7]
[392996680,1762209050886,-151.0,0.00036737,31]
[392996681,1762209050896,-77.15,0.00036821,2]
[392996682,1762209050908,-72.85,0.00036821,2]
[392996683,1762209050918,-259.86094976,0.00036821,2]
[392996684,1762209050930,-151.0,0.00036839,31]
[392996685,1762209050939,-151.0,0.00036849,31]
[392996686,1762209050948,-151.0,0.00036849,31]
[392996687,1762209050959,-296.218888,0.00036849,31]
[392996688,1762209050968,-11681.71455459,0.0003691,2]
[392996689,1762209050979,-403.03110987,0.00036916,2]
[392996690,1762209050990,-178.74819676,0.00036921,10]
[392996691,1762209050999,-1000.0,0.00036922,7]
[392996692,1762209051008,-515.1,0.00036926,7]
[392996693,1762209051017,-403.03110987,0.00036926,2]
[392996694,1762209051026,-197.0,0.00036928,120]
[392996695,1762209051035,-1318.19467805,0.00036932,2]
[392996696,1762209051044,-403.03110987,0.00036937,2]
[392996697,1762209051054,-197.0,0.00036938,120]
[392996698,1762209051063,-715.0,0.00036939,7]
[392996699,1762209051072,-1000.0,0.0003694,7]
[392996700,1762209051081,-1318.19467804,0.00036941,2]
[392996701,1762209051090,-150.0,0.00036943,7]
[392996702,1762209051099,-515.1,0.00036946,7]
[392996703,1762209051108,-403.03110987,0.00036947,2]
[392996704,1762209051118,-178.74819676,0.00036947,10]
[392996705,1762209051127,-500.0,0.00036948,30]
[392996706,1762209051136,-500.0,0.00036948,30]
[392996707,1762209051145,-500.0,0.00036948,30]
[392996708,1762209051154,-500.0,0.00036948,30]
[392996709,1762209051164,-500.0,0.00036948,30]
[392996710,1762209051173,-500.0,0.00036948,30]
[392996711,1762209051182,-500.0,0.00036948,30]
[392996712,1762209051191,-1318.19467804,0.00036949,2]
[392996713,1762209051200,-259.86046617,0.00036949,2]
[392996714,1762209051209,-2746.18701172,0.00036949,2]
[392996715,1762209051218,-202.45949288,0.00036949,2]
[392996716,1762209051227,-258.42588174,0.00036949,7]
[392996717,1762209051236,-166.69752704,0.00036949,2]
[392996718,1762209051245,-340.66,0.00036949,30]
[392996719,1762209051255,-557.65,0.00036949,30]
[392996720,1762209051264,-160.5498625,0.0003695,120]
[392996721,1762209051274,-1000.0,0.00036952,7]
[392996722,1762209051283,-150.0,0.00036958,30]
[392996723,1762209051292,-500.0,0.00036958,30]
[392996724,1762209051301,-500.0,0.00036958,30]
[392996725,1762209051311,-150.0,0.00036958,30]
[392996726,1762209051320,-500.0,0.00036958,30]
[392996727,1762209051329,-500.0,0.00036958,60]
[392996728,1762209051339,-500.0,0.00036958,30]
[392996729,1762209051348,-687.0,0.00036958,30]
[392996730,1762209051358,-500.0,0.00036958,30]
[392996731,1762209051368,-150.0,0.00036958,2]
[392996732,1762209051378,-500.0,0.00036958,2]
[392996733,1762209051387,-150.0,0.00036958,2]
[392996734,1762209051396,-151.0,0.00036961,31]
[392996735,1762209051405,-151.0,0.00036961,31]
[392996736,1762209051414,-151.0,0.00036961,31]
[392996737,1762209051423,-156.612198,0.00036961,31]
[392996738,1762209051432,-151.0,0.00036961,31]
[392996739,1762209051442,-209.035663,0.00036961,30]
[392996740,1762209051451,-151.0,0.00036961,30]
[392996741,1762209051460,-151.0,0.00036961,7]
[392996742,1762209051469,-151.0,0.00036961,31]
[392996743,1762209051479,-151.0,0.00036961,31]
[392996744,1762209051488,-217.091704,0.00036961,31]
[392996745,1762209051497,-151.0,0.00036961,31]
[392996746,1762209051506,-151.0,0.00036961,31]
[392996747,1762209051516,-188.664681,0.00036961,31]
[392996748,1762209051525,-188.664681,0.00036961,31]
[392996749,1762209051534,-188.664681,0.00036961,31]
[392996750,1762209051543,-188.664681,0.00036961,31]
[392996751,1762209051552,-151.0,0.00036961,31]
[392996752,1762209051562,-180.033927,0.00036961,31]
[392996753,1762209051571,-151.0,0.00036961,31]
[392996754,1762209051580,-151.0,0.00036961,14]
[392996755,1762209051589,-168.36074,0.00036961,31]
[392996756,1762209051598,-151.0,0.00036961,10]
[392996757,1762209051607,-151.0,0.00036961,31]
[392996758,1762209051616,-151.0,0.00036961,31]
[392996759,1762209051625,-180.720324,0.00036961,31]
[392996760,1762209051634,-180.720324,0.00036961,31]
[392996761,1762209051643,-180.720324,0.00036961,31]
[392996762,1762209051652,-180.720324,0.00036961,31]
[392996763,1762209051661,-151.0,0.00036961,31]
[392996764,1762209051669,-218.979912,0.00036961,31]
[392996765,1762209051678,-151.0,0.00036961,31]
[392996766,1762209051687,-151.0,0.00036961,31]
[392996767,1762209051696,-151.0,0.00036961,31]
[392996768,1762209051706,-243.742611,0.00036961,31]
[392996769,1762209051715,-151.0,0.00036961,31]
[392996770,1762209051724,-151.0,0.00036961,31]
[392996771,1762209051734,-151.0,0.00036961,31]
[392996772,1762209051743,-234.84803031,0.00036961,31]
[392996773,1762209051752,-151.0,0.00036961,31]
[392996774,1762209051762,-151.0,0.00036961,31]
[392996775,1762209051771,-151.0,0.00036961,31]
[392996776,1762209051780,-151.0,0.00036961,31]
[392996777,1762209051790,-151.0,0.00036961,31]
[392996778,1762209051800,-151.0,0.00036961,31]
[392996779,1762209051809,-151.0,0.00036961,31]
[392996780,1762209051818,-297.532316,0.00036961,31]
[392996781,1762209051827,-151.0,0.00036961,31]
[392996782,1762209051837,-151.0,0.00036961,31]
[392996783,1762209051846,-151.0,0.00036961,31]
[392996784,1762209051855,-151.0,0.00036961,31]
[392996785,1762209051865,-151.0,0.00036961,31]
[392996786,1762209051874,-151.0,0.00036961,31]
[392996787,1762209051885,-151.0,0.00036961,31]
[392996788,1762209051895,-279.252552,0.00036961,31]
[392996789,1762209051904,-151.0,0.00036961,31]
[392996790,1762209051913,-151.0,0.00036961,31]
[392996791,1762209051922,-151.0,0.00036961,31]
[392996792,1762209051933,-151.0,0.00036961,31]
[392996793,1762209051943,-255.916062,0.00036961,31]
[392996794,1762209051952,-190.904624,0.00036961,31]
[392996795,1762209051962,-151.0,0.00036961,31]
[392996796,1762209051971,-151.0,0.00036961,31]
[392996797,1762209051980,-151.0,0.00036961,31]
[392996798,1762209051990,-151.0,0.00036961,31]
[392996799,1762209052000,-151.0,0.00036961,31]
[392996800,1762209052010,-151.0,0.00036961,31]
[392996801,1762209052018,-151.0,0.00036961,31]
[392996802,1762209052028,-151.0,0.00036961,31]
[392996803,1762209052037,-268.166299,0.00036961,15]
[392996804,1762209052047,-151.000011,0.00036961,31]
[392996805,1762209052056,-160.944272,0.00036961,31]
[392996806,1762209052065,-155.605565,0.00036961,31]
[392996807,1762209052074,-160.944272,0.00036961,31]
[392996808,1762209052083,-160.944272,0.00036961,31]
[392996809,1762209052092,-160.944272,0.00036961,31]
[392996810,1762209052101,-950.602901,0.00036961,31]
[392996811,1762209052110,-553.992281,0.00036961,30]
[392996812,1762209052119,-206.636207,0.00036961,31]
[392996813,1762209052128,-950.602901,0.00036961,31]
[392996814,1762209052137,-151.0,0.00036961,31]
[392996815,1762209052146,-206.636207,0.00036961,31]
[392996816,1762209052155,-950.602901,0.00036961,31]
[392996817,1762209052164,-151.0,0.00036961,31]
[392996818,1762209052173,-206.636207,0.00036961,31]
[392996819,1762209052182,-553.992281,0.00036961,30]
[392996820,1762209052191,-950.602901,0.00036961,31]
[392996821,1762209052200,-206.636207,0.00036961,31]
[392996822,1762209052209,-553.992281,0.00036961,30]
[392996823,1762209052219,-553.992281,0.00036961,30]
[392996824,1762209052228,-151.0,0.00036961,31]
[392996825,1762209052237,-151.0,0.00036961,31]
[392996826,1762209052246,-160.058161,0.00036961,31]
[392996827,1762209052256,-151.0,0.00036961,31]
[392996828,1762209052265,-206.301874,0.00036961,31]
[392996829,1762209052274,-206.301874,0.00036961,31]
[392996830,1762209052283,-206.301874,0.00036961,31]
[392996831,1762209052293,-206.301874,0.00036961,31]
[392996832,1762209052302,-248.09600003,0.00036966,120]
[392996833,1762209052311,-153.398964,0.00036986,31]
[392996834,1762209052320,-151.0,0.00036986,31]
[392996835,1762209052329,-151.0,0.00036986,31]
[392996836,1762209052339,-284.0238278,0.00036986,31]
[392996837,1762209052348,-151.0,0.00036986,7]
[392996838,1762209052358,-151.0,0.00036986,31]
[392996839,1762209052367,-515.1,0.00036986,7]
[392996840,1762209052376,-151.0,0.00036986,31]
[392996841,1762209052385,-1000.0,0.00036986,30]
[392996842,1762209052394,-1000.0,0.00036986,30]
[392996843,1762209052403,-1000.0,0.00036986,30]
[392996844,1762209052412,-1000.0,0.00036986,30]
[392996845,1762209052421,-1000.0,0.00036986,30]
[392996846,1762209052430,-1000.0,0.00036986,30]
[392996847,1762209052439,-1000.0,0.00036986,30]
[392996848,1762209052448,-1000.0,0.00036986,30]
[392996849,1762209052457,-1000.0,0.00036986,30]
[392996850,1762209052466,-1000.0,0.00036986,30]
[392996851,1762209052475,-1000.0,0.00036986,30]
[392996852,1762209052484,-1000.0,0.00036986,30]
[392996853,1762209052495,-1000.0,0.00036986,30]
[392996854,1762209052504,-1000.0,0.00036986,30]
[392996855,1762209052513,-1000.0,0.00036986,30]
[392996856,1762209052522,-1000.0,0.00036986,30]
[392996857,1762209052531,-1000.0,0.00036986,30]
[392996858,1762209052540,-1000.0,0.00036986,30]
[392996859,1762209052549,-1000.0,0.00036986,30]
[392996860,1762209052558,-1000.0,0.00036986,30]
[392996861,1762209052567,-1000.0,0.00036986,30]
[392996862,1762209052576,-1000.0,0.00036986,30]
[392996863,1762209052585,-1597.75782335,0.00036986,30]
[392996864,1762209052594,-151.0,0.0003699,31]
[392996865,1762209052604,-188.664681,0.0003699,31]
[392996866,1762209052613,-188.664681,0.0003699,31]
[392996867,1762209052622,-188.664681,0.0003699,31]
[392996868,1762209052631,-188.664681,0.0003699,31]
[392996869,1762209052641,-177.405058,0.0003699,10]
[392996870,1762209052650,-151.0,0.00036991,31]
[392996871,1762209052659,-1425.0,0.00036996,2]
[392996872,1762209052668,-154.627231,0.00036998,31]
[392996873,1762209052813,-151.0,0.00036998,31]
[392996874,1762209052823,-151.0,0.00036998,31]
[392996875,1762209052833,-151.0,0.00036998,31]
[392996876,1762209052841,-151.0,0.00036998,31]
[392996877,1762209052850,-151.0,0.00036998,31]
[392996878,1762209052860,-215.0,0.00037,19]
[392996879,1762209052869,-150.0,0.00037,60]
[392996880,1762209052882,-1437.62394784,0.00037,15]
[392996881,1762209052924,-3062.37605216,0.00037,15]
[392996882,1762209052934,-8783.33959036,0.00037,2]
[392996883,1762209052943,-805.56197311,0.00037,120]
[392996884,1762209052954,-163.07265059,0.00037,2]
[392996885,1762209052963,-2000.0001,0.00037,2]
[392996886,1762209052972,-500.0,0.00037,120]
[392996887,1762209052982,-151.0,0.00037,31]
[392996888,1762209052991,-151.0,0.00037,31]
[392996889,1762209053000,-151.0,0.00037,31]
[392996890,1762209053009,-151.0,0.00037,31]
[392996891,1762209053019,-151.0,0.00037,31]
[392996892,1762209053029,-151.0,0.00037,31]
[392996893,1762209053039,-151.0,0.00037,31]
[392996894,1762209053048,-151.0,0.00037,31]
[392996895,1762209053058,-151.0,0.00037,31]
[392996896,1762209053068,-151.0,0.00037,31]
[392996897,1762209053077,-151.0,0.00037,31]
[392996898,1762209053086,-151.0,0.00037,31]
[392996899,1762209053096,-151.0,0.00037,31]
[392996900,1762209053105,-151.0,0.00037,31]
[392996901,1762209053115,-151.0,0.00037,31]
[392996902,1762209053125,-151.0,0.00037,31]
[392996903,1762209053135,-151.0,0.00037,31]
[392996904,1762209053145,-151.0,0.00037,31]
[392996905,1762209053154,-151.0,0.00037,31]
[392996906,1762209053165,-151.0,0.00037,31]
[392996907,1762209053175,-151.0,0.00037,31]
[392996908,1762209053185,-151.0,0.00037,31]
[392996909,1762209053195,-184.12,0.00037,35]
[392996910,1762209053205,-953.0,0.00037,2]
[392996911,1762209053215,-160.944272,0.00037,31]
[392996912,1762209053225,-160.944272,0.00037,31]
[392996913,1762209053251,-160.944272,0.00037,31]
[392996914,1762209053261,-160.944264,0.00037,31]
[392996915,1762209053271,-950.602901,0.00037,31]
[392996916,1762209053280,-553.992281,0.00037,30]
[392996917,1762209053290,-206.636207,0.00037,31]
[392996918,1762209053299,-950.602901,0.00037,31]
[392996919,1762209053308,-151.0,0.00037,31]
[392996920,1762209053318,-206.636207,0.00037,31]
[392996921,1762209053328,-950.602901,0.00037,31]
[392996922,1762209053338,-151.0,0.00037,31]
[392996923,1762209053347,-206.636207,0.00037,31]
[392996924,1762209053357,-553.992281,0.00037,30]
[392996925,1762209053366,-950.602896,0.00037,31]
[392996926,1762209053375,-206.636212,0.00037,31]
[392996927,1762209053384,-553.992281,0.00037,30]
[392996928,1762209053394,-553.992274,0.00037,30]
[392996929,1762209053404,-151.0,0.00037,31]
[392996930,1762209053414,-151.0,0.00037,31]
[392996931,1762209053423,-151.0,0.00037,31]
[392996932,1762209053432,-206.301874,0.00037,31]
[392996933,1762209053441,-206.301874,0.00037,31]
[392996934,1762209053450,-206.301874,0.00037,31]
[392996935,1762209053460,-206.301869,0.00037,31]
[392996936,1762209053469,-151.0,0.00037001,31]
[392996937,1762209053478,-180.720324,0.00037001,31]
[392996938,1762209053487,-180.720324,0.00037001,31]
[392996939,1762209053497,-180.720324,0.00037001,31]
[392996940,1762209053506,-180.720324,0.00037001,31]
[392996941,1762209053515,-151.0,0.00037001,31]
[392996942,1762209053526,-1425.0,0.00037003,2]
[392996943,1762209053535,-150.0,0.00037005,7]
[392996944,1762209053550,-207.14,0.00037009,60]
[392996945,1762209053559,-1000.0,0.00037014,7]
[392996946,1762209053569,-157.571671,0.00037018,31]
[392996947,1762209053578,-151.0,0.00037018,31]
[392996948,1762209053587,-151.0,0.00037018,7]
[392996949,1762209053597,-1272.0,0.00037021,2]
[392996950,1762209053606,-819.0,0.00037021,2]
[392996951,1762209053615,-1187.0,0.00037021,2]
[392996952,1762209053624,-905.0,0.00037021,2]
[392996953,1762209053634,-607.0,0.00037021,2]
[392996954,1762209053643,-3420.0,0.00037021,2]
[392996955,1762209053653,-821.0,0.00037021,2]
[392996956,1762209053662,-573.0,0.00037021,2]
[392996957,1762209053675,-151.0,0.00037021,31]
[392996958,1762209053684,-188.664681,0.00037021,31]
[392996959,1762209053701,-188.664681,0.00037021,31]
[392996960,1762209053720,-188.664681,0.00037021,31]
[392996961,1762209053756,-188.664681,0.00037021,31]
[392996962,1762209053776,-156.799692,0.00037021,31]
[392996963,1762209053793,-180.720324,0.00037022,31]
[392996964,1762209053813,-180.720324,0.00037022,31]
[392996965,1762209053833,-180.720324,0.00037022,31]
[392996966,1762209053854,-180.72032,0.00037022,31]
[392996967,1762209053874,-157.644612,0.00037022,31]
[392996968,1762209053896,-191.05426225,0.00037027,2]
[392996969,1762209053916,-191.05426225,0.00037027,2]
[392996970,1762209053932,-204.86,0.00037029,120]
[392996971,1762209053950,-157.236279,0.00037032,31]
[392996972,1762209053967,-151.160957,0.00037032,7]
[392996973,1762209053983,-151.0,0.00037032,31]
[392996974,1762209053999,-202.032545,0.00037032,31]
[392996975,1762209054014,-151.0,0.00037032,31]
[392996976,1762209054033,-151.0,0.00037032,31]
[392996977,1762209054049,-151.0,0.00037032,31]
[392996978,1762209054064,-151.0,0.00037032,31]
[392996979,1762209054079,-151.0,0.00037032,31]
[392996980,1762209054095,-151.0,0.00037032,31]
[392996981,1762209054110,-227.130468,0.00037032,31]
[392996982,1762209054125,-151.0,0.00037032,31]
[392996983,1762209054141,-151.0,0.00037032,31]
[392996984,1762209054156,-151.0,0.00037032,31]
[392996985,1762209054172,-151.0,0.00037032,31]
[392996986,1762209054187,-151.0,0.00037032,31]
[392996987,1762209054203,-151.0,0.00037032,31]
[392996988,1762209054218,-151.0,0.00037032,31]
[392996989,1762209054233,-151.0,0.00037032,31]
[392996990,1762209054249,-274.56992,0.00037032,31]
[392996991,1762209054282,-151.0,0.00037032,31]
[392996992,1762209054298,-151.0,0.00037032,31]
[392996993,1762209054314,-151.0,0.00037032,31]
[392996994,1762209054331,-151.0,0.00037032,31]
[392996995,1762209054347,-151.0,0.00037032,31]
[392996996,1762209054364,-245.032682,0.00037032,31]
[392996997,1762209054380,-151.0,0.00037032,31]
[392996998,1762209054396,-151.0,0.00037032,31]
[392996999,1762209054411,-1000.0,0.00037037,7]
[392997000,1762209054428,-1000.0,0.00037037,7]
[392997001,1762209054444,-1000.0,0.00037037,7]
[392997002,1762209054461,-1000.0,0.00037037,7]
[392997003,1762209054476,-1000.0,0.00037037,7]
[392997004,1762209054492,-1000.0,0.00037037,7]
[392997005,1762209054507,-1000.0,0.00037037,7]
[392997006,1762209054523,-1000.0,0.00037037,7]
[392997007,1762209054540,-1000.0,0.00037037,7]
[392997008,1762209054558,-1000.0,0.00037037,7]
[392997009,1762209054575,-1000.0,0.00037037,7]
[392997010,1762209054591,-1000.0,0.00037037,7]
[392997011,1762209054607,-168.18331404,0.00037037,7]
[392997012,1762209054623,-100.93530824,0.00037038,2]
[392997013,1762209054812,-1324.06469176,0.00037038,2]
[392997014,1762209054828,-197.0,0.00037039,120]
[392997015,1762209054845,-422.35505909,0.00037039,2]
[392997016,1762209054861,-515.1,0.00037041,7]
[392997017,1762209054878,-515.1,0.00037041,7]
[392997018,1762209054896,-515.1,0.00037041,7]
[392997019,1762209054911,-515.1,0.00037041,7]
[392997020,1762209054923,-515.1,0.00037041,7]
[392997021,1762209054933,-515.1,0.00037041,7]
[392997022,1762209054943,-515.10425089,0.00037041,7]
[392997023,1762209054953,-188.664681,0.00037041,31]
[392997024,1762209054963,-188.664681,0.00037041,31]
[392997025,1762209054974,-188.664681,0.00037041,31]
[392997026,1762209054983,-188.664689,0.00037041,31]
[392997027,1762209054992,-151.0,0.00037041,31]
[392997028,1762209055002,-151.0,0.00037041,31]
[392997029,1762209055012,-434.152442,0.00037041,31]
[392997030,1762209055021,-434.152442,0.00037041,31]
[392997031,1762209055030,-434.152442,0.00037041,31]
[392997032,1762209055039,-434.152432,0.00037041,31]
[392997033,1762209055048,-416.883281,0.00037041,31]
[392997034,1762209055058,-151.0,0.00037041,31]
[392997035,1762209055067,-416.883281,0.00037041,31]
[392997036,1762209055076,-151.0,0.00037041,31]
[392997037,1762209055376,-151.0,0.00037041,31]
[392997038,1762209055412,-416.883281,0.00037041,31]
[392997039,1762209055429,-192.356972,0.00037041,31]
[392997040,1762209055439,-416.883286,0.00037041,31]
[392997041,1762209055448,-233.531605,0.00037041,31]
[392997042,1762209055458,-233.531605,0.00037041,31]
[392997043,1762209055466,-233.531605,0.00037041,31]
[392997044,1762209055476,-233.531605,0.00037041,31]
[392997045,1762209055486,-262.765243,0.00037041,31]
[392997046,1762209055495,-212.011823,0.00037041,31]
[392997047,1762209055504,-262.765243,0.00037041,31]
[392997048,1762209055514,-212.011823,0.00037041,31]
[392997049,1762209055523,-262.765243,0.00037041,31]
[392997050,1762209055532,-212.011823,0.00037041,31]
[392997051,1762209055541,-262.765244,0.00037041,31]
[392997052,1762209055551,-212.011828,0.00037041,31]
[392997053,1762209055560,-151.0,0.00037041,31]
[392997054,1762209055569,-151.0,0.00037041,31]
[392997055,1762209055578,-151.0,0.00037041,31]
[392997056,1762209055587,-151.0,0.00037041,31]
[392997057,1762209055597,-151.0,0.00037041,31]
[392997058,1762209055606,-151.0,0.00037041,31]
[392997059,1762209055615,-151.0,0.00037041,31]
[392997060,1762209055626,-239.431653,0.00037041,31]
[392997061,1762209055635,-239.431653,0.00037041,31]
[392997062,1762209055645,-239.431653,0.00037041,31]
[392997063,1762209055655,-239.431658,0.00037041,31]
[392997064,1762209055664,-195.54001998,0.00037041,7]
[392997065,1762209055675,-160.78349179,0.00037041,7]
[392997066,1762209055687,-187.08250994,0.00037041,7]
[392997067,1762209055697,-265.22901678,0.00037041,7]
[392997068,1762209055706,-157.37634659,0.00037041,7]
[392997069,1762209055716,-268.03031623,0.00037041,7]
[392997070,1762209055725,-47572.69221377,0.00037041,2]
[392997071,1762209055734,-47572.69221377,0.00037041,2]
[392997072,1762209055744,-47572.69221377,0.00037041,2]
[392997073,1762209055755,-32262.11879358,0.00037041,2]
[392997074,1762209055791,-3874.14788319,0.00037041,2]
[392997075,1762209055815,-151.0,0.00036737,31]
[392997076,1762209055825,-913.06300001,0.00037041,2]
[392997077,1762209055836,-1683.70890334,0.00037041,2]
[392997078,1762209055886,-291.43165476,0.00037041,2]
[392997079,1762209055897,-1666.13340982,0.00037041,2]
[392997080,1762209057664,-163.57564895,0.00024005,2]
[392997081,1762209057674,-151.0,0.000249,7]
[392997082,1762209057684,-151.0,0.000249,7]
[392997083,1762209057694,-151.0,0.00036737,31]
[392997084,1762209057703,-1236.22408551,0.0003675,2]
[392997085,1762209057712,-33.02248155,0.00036821,2]
[392997086,1762209057860,-500.0,0.00030136,2]
[392997087,1762209057870,-351.24573401,0.00036821,2]
[392997088,1762209058846,-262.00461403,0.0003041,2]
[392997089,1762209058859,-115.73178444,0.00036821,2]
[392997090,1762209058868,-150.0,0.00036821,2]
[392997091,1762209058878,-133.85660147,0.00036821,2]
[392997092,1762209058892,-16.14339853,0.00036821,2]
[392997093,1762209058901,-150.0,0.00036821,2]
[392997094,1762209058910,-218.2152435,0.00036821,2]
[392997095,1762209058920,-500.0,0.00036821,2]
[392997096,1762209058930,-160.481984,0.00036839,31]
[392997097,1762209058939,-16.31951397,0.00036839,31]
[392997098,1762209058950,-134.68048603,0.00036839,31]
[392997099,1762209058960,-116.59151403,0.00036849,31]
[392997100,1762209058975,-163.57564895,0.00026594,2]
[392997101,1762209058984,-40.04961797,0.00036849,31]
[392997102,1762209058993,-241.13133474,0.00036958,2]
[392997103,1762209059003,-2140.0,0.00037021,2]
[392997104,1762209059012,-345.03164835,0.00037041,2]
[392997105,1762209059164,-3759.16462,0.00037041,2]
[392997106,1762209608190,10000.01,7.945e-05,2]
[392997107,1762209608217,10000.01,7.945e-05,2]
[392997108,1762209608244,10000.01,7.945e-05,2]
[392997109,1762209608269,4732.898872,7.945e-05,2]
[392997110,1762209613933,162.662248,2e-08,2]
[392997111,1762209643971,200.0,0.0001,2]
[392997114,1762209663519,972.75,0.00013699,2]
[392997115,1762209865253,220.0,0.00013631,2]
[392997116,1762209873110,170.0,7.5e-07,2]
[392997132,1762210232447,-303.6326312,0.00014998,2]
[392997133,1762210232456,-300.0,0.00014998,2]
[392997134,1762210232466,-45.56314574,0.00014998,2]
[392997135,1762210232502,-254.43685426,0.00014998,2]
[392997136,1762210232512,-300.0,0.00014998,2]
[392997137,1762210232521,-1200.0,0.00014998,2]
[392997138,1762210232530,-163.71623282,0.00014999,2]
[392997139,1762210232539,-164.06464169,0.00014999,2]
[392997140,1762210232551,-335.93535831,0.00014999,2]
[392997141,1762210232560,-57.62488743,0.00014999,2]
[392997142,1762210232571,-442.37511257,0.00014999,2]
[392997143,1762210232581,-500.0,0.00014999,2]
[392997144,1762210232590,-500.0,0.00014999,2]
[392997145,1762210232599,-250.0,0.00016497,2]
[392997146,1762210232608,-195.0,0.00016497,2]
[392997147,1762210232617,-341.302786,0.00016497,2]
[392997149,1762210232626,-250.0,0.00017,2]
[392997151,1762210232635,-300.0,0.00018865,2]
[392997153,1762210232644,-151.0,0.00018866,2]
[392997155,1762210232654,-151.0,0.00018866,2]
[392997157,1762210232663,-151.0,0.00018866,2]
[392997159,1762210232672,-151.0,0.00018866,2]
[392997161,1762210232681,-151.0,0.00018866,2]
[392997163,1762210232691,-151.0,0.00018866,2]
[392997165,1762210232700,-151.0,0.00018866,2]
[392997167,1762210232709,-151.0,0.00018866,2]
[392997169,1762210232718,-151.0,0.00018866,2]
[392997171,1762210232727,-151.0,0.00018866,2]
[392997173,1762210232736,-151.0,0.00018866,2]
[392997175,1762210232746,-151.0,0.00018866,2]
[392997177,1762210232755,-151.0,0.00018866,2]
[392997179,1762210232764,-151.0,0.00018866,2]
[392997181,1762210232780,-193.858952,0.00018866,2]
[392997183,1762210232795,-500.0,0.00018873,2]
[392997185,1762210232805,-500.0,0.00018873,2]
[392997187,1762210232818,-500.0,0.00018873,2]
[392997189,1762210232833,-172.56206533,0.00018873,2]
[392997191,1762210232842,-222.71819677,0.00018873,2]
[392997193,1762210232852,-500.0,0.00018876,2]